Cogmind - Beta 16 @@@ ROGUE MODE // 2026.01.05 @ 01:01:51 Player: Boris Result: Destroyed by Y-45 Defender with Heavy Assault Rifle Performance ------------- Evolutions (1) 500 Regions Visited (2) 400 Robots Destroyed (1) 5 Value Destroyed (7) 7 Prototype IDs (1) 20 Alien Tech Used (0) 0 Bonus (200) 200 TOTAL SCORE: 1132 Bonus ------- Pacifist 200 Cogmind --------- Core Integrity 0/400 Matter 24/300 Energy 100/100 System Corruption 0% Temperature Cool (33) Movement Core (50) Location -9/Materials Parts ------- > --- POWER (1) -------- (None) > --- PROPULSION (4) --- (None) > --- UTILITY (2) ------ Visual Processing Unit > --- WEAPON (2) ------- (None) > --- INVENTORY (5) ---- VTOL Module VTOL Module VTOL Module VTOL Module Assault Rifle Peak State ------------ > --- POWER ------------ Light Ion Engine > --- PROPULSION ------- VTOL Module VTOL Module VTOL Module VTOL Module > --- UTILITY ---------- Visual Processing Unit Seismic Detector > --- WEAPON ----------- Particle Gun Improved Assault Rifle > --- INVENTORY -------- Assault Rifle [Rating: 17] Favorites ----------- Power Light Ion Engine Engine Light Ion Engine Propulsion VTOL Module Flight Unit VTOL Module Utility Visual Processing Unit Device Seismic Detector Processor Visual Processing Unit Weapon Particle Gun Energy Gun Particle Gun Ballistic Gun Improved Assault Rifle Build | -11 -10 -9 ------- Run | Yrd Mat Mat Slots Evolved 2 | . . 2 Power . | . . . Propulsion 2 | . . 2 Utility . | . . . Weapon . | . . . Parts Attached 10 | 1 3 6 Power 1 | . . 1 Engine 1 | . . 1 Core . | . . . Reactor . | . . . Propulsion 4 | . 2 2 Treads . | . . . Leg . | . . . Wheel . | . . . Hover . | . . . Flight 4 | . 2 2 Utility 2 | . . 2 Device 1 | . . 1 Storage . | . . . Processor 1 | . . 1 Hackware . | . . . Protection . | . . . Artifact . | . . . Weapon 3 | 1 1 1 Energy Gun 1 | . . 1 Energy Cannon . | . . . Ballistic Gun 2 | 1 1 . Ballistic Cannon . | . . . Launcher . | . . . Special Weapon . | . . . Impact Weapon . | . . . Slashing Weapon . | . . . Piercing Weapon . | . . . Special Melee Weapon . | . . . Unidentified Prototypes 1 | . 1 . Parts Lost . | . . . Power . | . . . Propulsion . | . . . Utility . | . . . Weapon . | . . . Highest Loss Streak . | . . . To Critical Strikes . | . . . Average Backups 1 | . 1 2 Power . | . . . Propulsion . | . . . Utility . | . . . Weapon 1 | . 1 1 Tool/Special . | . . . Unused Backups . | . . . Power . | . . . Propulsion . | . . . Utility . | . . . Weapon . | . . . Tool/Special . | . . . Average Slot Usage (%) 49 | . 19 66 Engine 1 | . . 2 Flight 28 | . 11 37 Device 1 | . . 2 Processor 6 | . . 9 Energy Gun 4 | . . 7 Ballistic Gun 6 | . 8 6 Peak Build Rating 17 | 1 4 17 Average Rating 8 | . 2 11 On Entrance 1 | . 1 4 Avg Prop Armor Cover (%) 12 | . . 12 Naked Turns 1 | . 1 . Heaviest Build 10 | 2 2 10 Greatest Support 20 | 3 8 20 Greatest Overweight (x) 1 | . . 1 Average Overweight (x) . | . . . Largest Inventory Capacity 5 | 5 5 5 Average Capacity 5 | 5 5 5 Most Carried 5 | . 4 5 Average Carried 1 | . 2 2 Final Capacity 5 | 5 5 5 Final Carried 5 | . 4 5 Class Distribution -------------------- 100% | Mutant Dominant Class ---------------- Mutant | -10/Materials Mutant | -9/Materials Resources | -11 -10 -9 ----------- Run | Yrd Mat Mat Matter Collected 46 | 32 . 14 Remotely . | . . . Salvage Created 14 | . . 14 Parts 5 | . . 5 Haulers Intercepted . | . . . Recyclers Shooed . | . . . Parts Field Recycled . | . . . Retrieved Matter . | . . . Parts Self-Destructed . | . . . Prevented . | . . . Parts Restored . | . . . Kills | -11 -10 -9 ------- Run | Yrd Mat Mat Combat Hostiles Destroyed . | . . . Classes Destroyed 1 | . . 1 Tunneler 1 | . . 1 Best Kill Streak 1 | . . 1 Combat Bots Only . | . . . Max Kills in Single Turn 1 | . . 1 Gunslinging . | . . . Exploded . | . . . Melee . | . . . Uniques/NPCs Destroyed . | . . . Combat | -11 -10 -9 -------- Run | Yrd Mat Mat Hostile Shots Fired 45 | . 6 39 Missed 8 | . 2 6 Hits 37 | . 4 33 Projectile 37 | . 4 33 Critical Strikes 2 | . . 2 Damage Taken 515 | . 51 464 Core 429 | . 29 400 Absorbed by Shields . | . . . Core Remaining (%) 94 | 100 88 . Volleys Fired 4 | . . 4 Largest 1 | . . 1 Hottest 23 | . . 23 Shots Fired 4 | . . 4 Gun 4 | . . 4 Cannon . | . . . Launcher . | . . . Special . | . . . Kinetic 4 | . . 4 Thermal . | . . . Explosive . | . . . Electromagnetic . | . . . Robot Hit Streak 2 | . . 2 Robot Miss Streak 1 | . . 1 Penetration Max . | . . . Secondary Targets . | . . . Shots Hit Robots 3 | . . 3 Core Hits 1 | . . 1 Critical Kills . | . . . Critical Parts Destroyed 1 | . . 1 Critical Strikes 1 | . . 1 Destroy 1 | . . 1 Melee Attacks . | . . . Impact . | . . . Slashing . | . . . Piercing . | . . . Sneak Attacks . | . . . Combat Hostiles . | . . . Follow-up Attacks . | . . . Damage Inflicted 46 | . . 46 Guns 46 | . . 46 Cannons . | . . . Explosions . | . . . Melee . | . . . Ramming . | . . . Kinetic 46 | . . 46 Thermal . | . . . Explosive . | . . . Electromagnetic . | . . . Impact . | . . . Slashing . | . . . Piercing . | . . . Highest Corruption . | . . . Average Corruption . | . . . Corruption Purged . | . . . Corruption Blocked . | . . . Overload Shots . | . . . Overflow Damage . | . . . Projectiles . | . . . Explosions . | . . . Melee . | . . . Knockbacks . | . . . Impact . | . . . Kinetic . | . . . Secondary . | . . . Self-Inflicted Damage . | . . . Shots . | . . . Rammed . | . . . Targets Rammed . | . . . Kicked . | . . . Crushed . | . . . Highest Temperature 5 | . . 5 Average Temperature 3 | . . 3 Received Heat Transfer 270 | . 27 243 Siege Activations . | . . . Martial Activations . | . . . Shielding Activations . | . . . Robots Disrupted . | . . . Combat Hostiles . | . . . Robots Corrupted . | . . . Combat Hostiles . | . . . Parts Fried . | . . . Impact Corruptions . | . . . Robots Melted . | . . . Combat Hostiles . | . . . Parts Melted . | . . . Heat Transferred . | . . . Parts Sabotaged . | . . . Parts Stolen . | . . . Parts Stripped . | . . . Power Chain Reactions . | . . . Alert | -11 -10 -9 ------- Run | Yrd Mat Mat Maximum Alert Level . | . . . Low Security (%) 100 | 100 100 100 Level 1 . | . . . Level 2 . | . . . Level 3 . | . . . Level 4 . | . . . Level 5 . | . . . High Security . | . . . Max Security . | . . . Peak Influence 20 | . 15 20 Initial 5 | . . 5 Average 3 | . 1 4 Influence Increases 35 | . 15 20 Destroy 0b10 Robot/NC 5 | . . 5 Partial Spotted 30 | . 15 15 Influence Decreases 35 | . . 35 Entered New Map 10 | . . 10 Time Decay 25 | . . 25 Squads Dispatched . | . . . Investigation . | . . . Extermination . | . . . Reinforcement . | . . . Assault . | . . . Garrison . | . . . Intercept . | . . . Searches Triggered . | . . . Construction Impeded . | . . . Haulers Reinforced . | . . . Active Scanning Responses . | . . . Cargo Convoy Interrupts . | . . . Stealth | -11 -10 -9 --------- Run | Yrd Mat Mat Distress Signals 2 | . 2 . Communications Jammed . | . . . Distress Signals . | . . . Times Spotted 12 | . 5 7 Peak Tracking Total 7 | . 5 7 Tactical Retreats . | . . . Traps | -11 -10 -9 ------- Run | Yrd Mat Mat Traps Triggered . | . . . Indirectly . | . . . Trap Hack Attempts . | . . . Triggered . | . . . Disarmed . | . . . Reprogrammed . | . . . Reused . | . . . Traps Extracted . | . . . Installed . | . . . Triggered . | . . . Machines | -11 -10 -9 ---------- Run | Yrd Mat Mat Machines Disabled . | . . . Max in Single Turn . | . . . Machines Repaired . | . . . Machines Dismantled . | . . . Machines Sabotaged . | . . . Overloaded Fab Kills . | . . . Hacking | -11 -10 -9 --------- Run | Yrd Mat Mat Machines Accessed 1 | . . 1 Terminals . | . . . Fabricators . | . . . Repair Stations . | . . . Recycling Units . | . . . Scanalyzers 1 | . . 1 Garrison Access . | . . . Total Hacks 2 | . . 2 Successful 2 | . . 2 Failed . | . . . Catastrophic . | . . . Database Lockouts . | . . . Manual . | . . . Terminals . | . . . Fabricators . | . . . Repair Stations . | . . . Recycling Units . | . . . Scanalyzers 2 | . . 2 Garrison Access . | . . . Terminal Hacks . | . . . Fabricator Hacks . | . . . Repair Station Hacks . | . . . Recycling Unit Hacks . | . . . Scanalyzer 2 | . . 2 Retrieve Study 2 | . . 2 Garrison Access Hacks . | . . . Unauthorized Hacks . | . . . Terminals . | . . . Fabricators . | . . . Repair Stations . | . . . Recycling Units . | . . . Scanalyzers . | . . . Garrison Access . | . . . Data Cores Recovered . | . . . Used . | . . . Hacking Detections 1 | . . 1 Full Trace Events . | . . . Feedback Events . | . . . Feedback Blocked . | . . . Robot Schematics Acquired . | . . . Robots Built . | . . . Authchips . | . . . Time . | . . . Total Robot Build Rating . | . . . Part Schematics Acquired . | . . . Parts Built . | . . . Authchips . | . . . Time . | . . . Total Part Build Rating . | . . . Part Studies Acquired 2 | . . 2 Parts Repaired . | . . . Time . | . . . Parts Recycled . | . . . Recycled Matter . | . . . Retrieved Matter . | . . . Retrieved Components . | . . . Parts Scanalyzed . | . . . Part Schematics Acquired . | . . . Parts Damaged . | . . . Bothacking | -11 -10 -9 ------------ Run | Yrd Mat Mat Used RIF Installer . | . . . Robots Hacked . | . . . Non-combat . | . . . Combat . | . . . Robot Hacks Applied . | . . . Relay Couplers Released . | . . . Fabnet Peak Effective % . | . . . Robots Rewired . | . . . Allies Hacked . | . . . Hacks Repelled . | . . . Allies | -11 -10 -9 -------- Run | Yrd Mat Mat Total Allies . | . . . Largest Group . | . . . Highest-Rated Group . | . . . Highest-Rated Ally . | . . . Total Orders . | . . . Ally Attacks . | . . . Total Damage . | . . . Kills . | . . . Allies Corrupted . | . . . Allies Melted . | . . . Intel | -11 -10 -9 ------- Run | Yrd Mat Mat Active Infowar (turns) 80 | . . 80 Optics 80 | . . 80 Seismic 19 | . . 19 Robot Analysis Total . | . . . Derelict Logs Recovered . | . . . Drone Launches . | . . . Drone Recoveries . | . . . Exploration | -11 -10 -9 ------------- Run | Yrd Mat Mat Turns Passed 138 | 17 36 85 Spaces Moved 210 | 30 75 105 Core 69 | 30 23 16 Treads . | . . . Legs . | . . . Wheels . | . . . Hover . | . . . Flight 141 | . 52 89 Fastest Speed 26 | 50 32 26 Average Speed 38 | 50 37 36 Slowest Speed 100 | 50 50 100 Overloaded Moves . | . . . Propulsion Burnouts . | . . . Robots Hopped 1 | . 1 . Potential Cave-ins . | . . . Cave-ins Triggered . | . . . Exploration Rate (%) 14 | 4 27 13 Regions Visited 2 Branch Regions . Pre-discovered Areas . | . . . Known Exits Taken . | . . . Unknown Exits Taken 2 | 1 1 . Scrap Searched . | . . . Spaces Dug . | . . . Terrain Destroyed . | . . . Melee . | . . . Projectile . | . . . AOE . | . . . Terrain Rammed . | . . . Walls Destroyed . | . . . Machines Disabled . | . . . Actions | -11 -10 -9 --------- Run | Yrd Mat Mat Total 260 | 30 80 150 Wait 26 | . . 26 Move 206 | 29 72 105 Hop 1 | . 1 . Pick Up 2 | . 2 . Fast Attach 8 | 1 3 4 Attach 3 | . . 3 Detach 6 | . 2 4 Swap . | . . . Drop 4 | . . 4 Fire 4 | . . 4 Melee . | . . . Ram . | . . . Kick . | . . . Crush . | . . . Escape Stasis . | . . . Rewire . | . . . Trap . | . . . Miscellaneous . | . . . Route ------- -11/Scrapyard -10/Materials -9/Materials History --------- Turn | Location | Event 3 | -11/Scrapyard | Discovered new exit (range 15) 18 | -11/Scrapyard | Entered Materials 52 | -10/Materials | Discovered new exit (range 5) 54 | -10/Materials | Entered another Materials area 54 | -9/Materials | Evolved 2 slots: Propulsion x2 134 | -9/Materials | Core integrity fell below 50% 138 | -9/Materials | Core integrity fell below 20% 139 | -9/Materials | Destroyed by Y-45 Defender with Heavy Assault Rifle Last Messages --------------- Identified Assault Rifle... Downloading performance data... Effective improvements: +10% accuracy 00063_ Acquired Particle Gun. 00067_ K-01 Serf collects debris. 00077_ T-07 Excavator suffers critical hit (Destroy). 00077_ Destroyed Imp. Terrain Scanner. 00080_ K-01 Serf collects debris. 00100_ T-07 Excavator destroyed. 00103_ Acquired 14 matter. 00104_ Acquired Seismic Detector. 00106_ Acquired Lgt. Ion Engine. 00112_ Connecting with Terminal... 00115_ O-16 Technician: "IFF HANDSHAKE FAILED. SECURING TERMINAL." 00122_ Dropped Lgt. Ion Engine. 00123_ Dropped Seismic Detector. 00123_ Dropped Particle Gun. 00124_ Dropped Imp. Assault Rifle. 00130_ Critical hit (Burn: +37). Map ----- +----------------------------------------------------+ | ?????????????????????????????????????????????????? | | ?????????????????????????????????????????????????? | | ???????????????????###########???????????????????? | | ???????????????????# #???????????????????? | | ???????????????????# T #???????????????????? | | ???????########????# #???????????????????? | | ???????# #????# #???????????????????? | | ???????# #????# """ """ #???????????????????? | | ???????# #????# """ """ #???????????????????? | | ???????# #????# """ """ #???????????????????? | | ???????# #????# #???????????????????? | | ????????? ?????#####+#####???????????????????? | | ???????####+########## ###########???????????? | | ???????# +???????????? | | ???????# =| " ! #???????????? | | #####??# = +???????????? | | #??####+######+### #####+#####???????????? | | ##### ## ## ##?????????????????????? | | + "" ## ## #??????????????????????? | | ##### """ ## ## #??????????????????????? | | #???# S" ## ## #??????????????????????? | | # ###???# ## ##[ #??????????????????????? | | # #?????# ## "##*[ #??????????????????????? | | # ############### T##!Y ##?????????????????????? | | + #???????# "# w###+####??????????????? | | # ##### #???????# # @ ??????? | | # #?????????????###### ??????? | | # #??????????????????# ??????? | | # #??????????????????# ggg ##############????????? | | # #??????????????????###/###?????????????????????? | | #???????????????????? ???????????????????????? | | #????????????????????" ???????????????????????? | | #???????????????????"" ???????????????????????? | | #???????????????????"" ???????????????????????? | | #??????????????????? ???????????????????????? | | #??????????????????? ??????????????????????? | | #???????????????????#####??????????????????????? | | #??????????????????????????????????????????????? | | #??????????????????????????????????????????????? | | #??????????????????????????????????????????????? | | #+#??????????????????????????????????????????????? | | ?????????????????????????????????????????????????? | | ?????????????????????????????????????????????????? | | ?????????????????????????????????????????????????? | | ?????????????????????????????????????????????????? | | ?????????????????????????????????????????????????? | | ?????????????????????????????????????????????????? | | ?????????????????????????????????????????????????? | | ?????????????????????????????????????????????????? | | ?????????????????????????????????????????????????? | +----------------------------------------------------+ Best States ------------- Heat Dissipation 28 Energy Generation 10 Energy Capacity 125 Matter Stores 122 Matter Capacity 300 Sight Range 18 Terrain Scan Density 10 Evasion (%) 64 Item Schematics ----------------- None Robot Schematics ------------------ None Fabricated ------------ Nothing Repaired ---------- Nothing Studied --------- VTOL Module | -9/Materials | Hacked Assault Rifle | -9/Materials | Hacked Alien Tech Used ----------------- None Achievements -------------- None Challenges ------------ None Game ------ Seed SegregatorStrikeLink Manual? 0 Play Time 00:03:20 Cumulative 729.0 hours Start 2026.01.05 @ 00:59:36 End 2026.01.05 @ 01:01:51 Sessions 1 Manual Loads 0 Difficulty Rogue Special Mode None Game No. 232 Rogue 216 Adventurer 15 Explorer 1 Win Type - Total 42 Types 11/5/10/2/2/0/6/3/1/2 Lore% 96 Gallery% 91 Achievement% 72 Wizard Run 0 Options --------- Layout 0 ASCII 0 Keyboard 0 Movement Numpad Keybinds 0 Fullscreen 1 Font 18/SmallcapsGlow Map View 76x50 Zoom Use 0% Tactical HUD 1 Map Filters NONE Filters NONE Steam 1 RUN: fc81032b-41f0-45e7-9910-e27bb620f668